fUSD/lending_fUSD_20240515
["ID","MTS","AMOUNT","RATE_DAILY","PERIOD"]
[327071251,1715778647112,-208.27152668,0.00011878,2]
[327071252,1715778647121,-3279.84855016,0.00011878,2]
[327071253,1715778647130,-440.35264975,0.00011878,2]
[327071254,1715778647139,-155.0,0.00011878,2]
[327071255,1715778647148,-158.39167548,0.00011878,2]
[327071256,1715778647158,-225.97112315,0.00011878,2]
[327071257,1715778647167,-288.53491335,0.00011878,2]
[327071258,1715778647176,-336.25747067,0.00011878,2]
[327071259,1715778647186,-711.19450635,0.00011878,2]
[327071260,1715778647195,-157.04666537,0.00011878,2]
[327071261,1715778647205,-255.24116787,0.00011878,2]
[327071262,1715778647214,-300.27460068,0.00011878,2]
[327071263,1715778647223,-740.89833695,0.00011878,2]
[327071264,1715778647232,-2358.78776413,0.00011878,2]
[327071265,1715778647242,-1952.72081127,0.00011878,5]
[327071266,1715778647251,-308.15932828,0.00011878,2]
[327071267,1715778647260,-1210.37915373,0.00011878,2]
[327071269,1715778647269,-5865.7372962,0.00011878,2]
[327071271,1715778647278,-236.08287886,0.00011878,2]
[327071273,1715778647288,-206.37370365,0.00011878,2]
[327071274,1715778647297,-155.31720757,0.00011878,2]
[327071276,1715778647306,-206.3699626,0.00011878,2]
[327071277,1715778647315,-330.309552,0.00011878,2]
[327071278,1715778647325,-969.72210365,0.00011878,2]
[327071279,1715778647335,-165.95926671,0.00011878,2]
[327071280,1715778647346,-325.092023,0.00011878,2]
[327071281,1715778647356,-155.12412876,0.00011878,2]
[327071282,1715778647365,-335.47287697,0.00011878,2]
[327071283,1715778647374,-305.0,0.00011878,2]
[327071284,1715778647384,-323.68137164,0.00011878,2]
[327071285,1715778647394,-298.39421916,0.00011878,2]
[327071286,1715778647403,-155.11147485,0.00011878,2]
[327071287,1715778647413,-283.98444425,0.00011878,2]
[327071288,1715778647422,-282.55141763,0.00011878,2]
[327071289,1715778647434,-155.26323273,0.00011878,2]
[327071290,1715778647445,-204.34387367,0.00011878,2]
[327071291,1715778647454,-23106.27137631,0.00011878,2]
[327071292,1715778647463,-366.94333179,0.00011878,2]
[327071293,1715778647473,-500.0,0.00011878,2]
[327071294,1715778647483,-151.0,0.00011878,2]
[327071295,1715778647492,-151.0,0.00011878,2]
[327071296,1715778647502,-151.0,0.00011878,2]
[327071297,1715778647512,-151.922386,0.00011878,2]
[327071298,1715778647522,-768.62,0.00011878,2]
[327071299,1715778647533,-151.0,0.00011878,2]
[327071300,1715778647543,-151.0,0.00011878,2]
[327071301,1715778647553,-285.893883,0.00011878,2]
[327071302,1715778647563,-222.44625186,0.00011878,2]
[327071303,1715778647572,-292.37787897,0.00011878,2]
[327071304,1715778647581,-155.0,0.00011878,2]
[327071305,1715778647593,-258.43346746,0.00011878,2]
[327071306,1715778647603,-301.35624784,0.00011878,2]
[327071307,1715778647613,-3394.67823078,0.00011878,2]
[327071308,1715778647623,-155.0,0.00011878,2]
[327071309,1715778647632,-151.0,0.00011878,2]
[327071310,1715778647642,-151.0,0.00011878,2]
[327071311,1715778647652,-532.63,0.00011878,2]
[327071312,1715778647663,-151.0,0.00011878,2]
[327071313,1715778647673,-151.0,0.00011878,2]
[327071314,1715778647682,-151.0,0.00011878,2]
[327071315,1715778647692,-151.0,0.00011878,2]
[327071316,1715778647701,-151.0,0.00011878,2]
[327071317,1715778647711,-151.0,0.00011878,2]
[327071318,1715778647723,-500.0,0.00011878,2]
[327071319,1715778647733,-151.0,0.00011878,2]
[327071320,1715778647743,-153.592935,0.00011878,2]
[327071321,1715778647753,-151.0,0.00011878,2]
[327071322,1715778647763,-151.0,0.00011878,2]
[327071323,1715778647773,-151.0,0.00011878,2]
[327071324,1715778647783,-151.0,0.00011878,2]
[327071325,1715778647793,-843.19,0.00011878,2]
[327071326,1715778647805,-500.0,0.00011878,2]
[327071327,1715778647814,-500.0,0.00011878,2]
[327071328,1715778647824,-504.3213866,0.00011878,2]
[327071329,1715778647834,-500.0,0.00011878,2]
[327071330,1715778647846,-500.0,0.00011878,2]
[327071331,1715778647855,-151.0,0.00011878,2]
[327071332,1715778647865,-673.01,0.00011878,2]
[327071333,1715778647874,-500.0,0.00011878,2]
[327071334,1715778647883,-500.0,0.00011878,2]
[327071335,1715778647895,-223.65370089,0.00011878,2]
[327071336,1715778647905,-258.444635,0.00011878,2]
[327071337,1715778647915,-500.0,0.00011878,2]
[327071338,1715778647926,-500.0,0.00011878,2]
[327071339,1715778647936,-500.0,0.00011878,2]
[327071340,1715778647946,-766.76573756,0.00011878,2]
[327071341,1715778647955,-500.0,0.00011878,2]
[327071342,1715778647964,-151.0,0.00011878,2]
[327071343,1715778647973,-385.07736017,0.00011878,2]
[327071344,1715778647982,-500.0,0.00011878,2]
[327071345,1715778647992,-500.0,0.00011878,2]
[327071346,1715778648003,-500.0,0.00011878,2]
[327071347,1715778648013,-151.0,0.00011878,2]
[327071348,1715778648024,-151.0,0.00011878,2]
[327071349,1715778648033,-151.0,0.00011878,2]
[327071350,1715778648042,-500.0,0.00011878,2]
[327071351,1715778648051,-476.011655,0.00011878,2]
[327071352,1715778648061,-476.011655,0.00011878,2]
[327071353,1715778648070,-151.0,0.00011878,2]
[327071354,1715778648080,-151.0,0.00011878,2]
[327071355,1715778648090,-151.0,0.00011878,2]
[327071356,1715778648099,-151.0,0.00011878,2]
[327071357,1715778648108,-151.0,0.00011878,2]
[327071358,1715778648117,-7653.32464728,0.00011878,2]
[327071359,1715778648127,-1070.27520064,0.00011879,3]
[327071360,1715778648136,-1093.97727181,0.00011879,3]
[327071361,1715778648145,-500.0,0.00011879,2]
[327071362,1715778648155,-500.0,0.00011879,2]
[327071363,1715778648164,-500.0,0.00011879,2]
[327071364,1715778648173,-184.949658,0.00011879,2]
[327071365,1715778648182,-151.0,0.00011879,2]
[327071366,1715778648191,-153.12016,0.00011879,2]
[327071367,1715778648201,-768.62,0.00011879,2]
[327071368,1715778648210,-768.62,0.00011879,2]
[327071369,1715778648219,-768.62,0.00011879,2]
[327071370,1715778648228,-151.0,0.00011879,2]
[327071371,1715778648239,-151.0,0.00011879,2]
[327071372,1715778648248,-532.63,0.00011879,2]
[327071373,1715778648258,-532.63,0.00011879,2]
[327071374,1715778648268,-532.63,0.00011879,2]
[327071375,1715778648278,-500.0,0.00011879,2]
[327071376,1715778648287,-500.0,0.00011879,2]
[327071377,1715778648297,-500.0,0.00011879,2]
[327071378,1715778648306,-151.0,0.00011879,2]
[327071379,1715778648315,-500.0,0.00011879,2]
[327071380,1715778648326,-500.0,0.00011879,2]
[327071381,1715778648336,-154.85,0.00011879,2]
[327071382,1715778648347,-151.0,0.00011879,2]
[327071383,1715778648357,-500.0,0.00011879,2]
[327071384,1715778648366,-500.0,0.00011879,2]
[327071385,1715778648375,-500.0,0.00011879,2]
[327071386,1715778648385,-500.0,0.00011879,2]
[327071387,1715778648394,-500.0,0.00011879,2]
[327071388,1715778648404,-500.0,0.00011879,2]
[327071389,1715778648414,-243.09332696,0.00011879,2]
[327071390,1715778648423,-110.45875885,0.00011879,2]
[327071391,1715778648443,-389.54124115,0.00011879,2]
[327071392,1715778648455,-213.93311703,0.00011879,2]
[327071393,1715778648464,-500.0,0.00011879,2]
[327071394,1715778648474,-500.0,0.00011879,2]
[327071395,1715778648483,-500.0,0.00011879,2]
[327071396,1715778648494,-151.0,0.00011879,2]
[327071397,1715778648504,-151.0,0.00011879,2]
[327071398,1715778648513,-500.0,0.00011879,2]
[327071399,1715778648524,-500.0,0.00011879,2]
[327071400,1715778648534,-500.0,0.00011879,2]
[327071401,1715778648543,-151.0,0.00011879,2]
[327071402,1715778648553,-500.0,0.00011879,2]
[327071403,1715778648562,-475.53034419,0.00011879,2]
[327071404,1715778648571,-170.68983947,0.00011879,2]
[327071405,1715778648580,-159.155383,0.00011879,2]
[327071406,1715778648590,-778.5,0.00011879,2]
[327071407,1715778648599,-778.5,0.00011879,2]
[327071408,1715778648608,-778.5,0.00011879,2]
[327071409,1715778648617,-500.0,0.00011879,2]
[327071410,1715778648627,-500.0,0.00011879,2]
[327071411,1715778648636,-500.0,0.00011879,2]
[327071412,1715778648645,-843.19,0.00011879,2]
[327071413,1715778648655,-843.19,0.00011879,2]
[327071414,1715778648664,-843.19,0.00011879,2]
[327071415,1715778648673,-545.87478642,0.00011879,2]
[327071416,1715778648683,-151.0,0.00011879,2]
[327071417,1715778648692,-151.0,0.00011879,2]
[327071418,1715778648701,-151.0,0.00011879,2]
[327071419,1715778648710,-151.0,0.00011879,2]
[327071420,1715778648719,-151.0,0.00011879,2]
[327071421,1715778648729,-151.0,0.00011879,2]
[327071422,1715778648738,-151.0,0.00011879,2]
[327071423,1715778648747,-151.0,0.00011879,2]
[327071424,1715778648757,-154.171065,0.00011879,2]
[327071425,1715778648766,-154.171065,0.00011879,2]
[327071426,1715778648775,-154.171065,0.00011879,2]
[327071427,1715778648785,-154.171065,0.00011879,2]
[327071428,1715778648794,-500.0,0.00011879,2]
[327071429,1715778648805,-500.0,0.00011879,2]
[327071430,1715778648814,-500.0,0.00011879,2]
[327071431,1715778648824,-500.0,0.00011879,2]
[327071432,1715778648833,-613.45,0.00011879,2]
[327071433,1715778648843,-500.0,0.00011879,2]
[327071434,1715778648853,-217.45,0.00011879,2]
[327071435,1715778648862,-151.0,0.00011879,2]
[327071436,1715778648872,-151.0,0.00011879,2]
[327071437,1715778648881,-151.0,0.00011879,2]
[327071438,1715778648890,-242.30269,0.00011879,2]
[327071439,1715778648899,-373.15387903,0.00011879,2]
[327071440,1715778648908,-287.47866665,0.00011879,2]
[327071441,1715778648918,-676.955659,0.00011879,2]
[327071442,1715778648927,-552.76,0.00011879,2]
[327071443,1715778648936,-494.48013406,0.00011879,2]
[327071444,1715778648949,-182.47552494,0.00011879,2]
[327071445,1715778648958,-436.3773066,0.00011879,2]
[327071446,1715778649043,-63.6226934,0.00011879,2]
[327071447,1715778649053,-274.81697212,0.00011879,2]
[327071448,1715778649062,-1242.65,0.00011879,2]
[327071449,1715778649071,-1242.65,0.00011879,2]
[327071450,1715778649080,-1242.65,0.00011879,2]
[327071451,1715778649091,-286.496541,0.00011879,2]
[327071452,1715778649100,-286.496541,0.00011879,2]
[327071453,1715778649109,-1463.34,0.00011879,2]
[327071454,1715778649119,-1048.86601304,0.00011879,2]
[327071455,1715778649130,-414.47398696,0.00011879,2]
[327071456,1715778649140,-286.496541,0.00011879,2]
[327071457,1715778649149,-1463.34,0.00011879,2]
[327071458,1715778649159,-286.496541,0.00011879,2]
[327071459,1715778649168,-151.0,0.00011879,2]
[327071460,1715778649178,-161.220351,0.00011879,2]
[327071461,1715778649187,-1046.26,0.00011879,2]
[327071462,1715778649196,-1046.26,0.00011879,2]
[327071463,1715778649206,-204.97756004,0.00011879,2]
[327071464,1715778649338,-841.28243996,0.00011879,2]
[327071465,1715778649348,-151.0,0.00011879,2]
[327071466,1715778649357,-191.37,0.00011879,2]
[327071467,1715778649367,-151.0,0.00011879,2]
[327071468,1715778649377,-151.0,0.00011879,2]
[327071469,1715778649387,-151.0,0.00011879,2]
[327071470,1715778649398,-151.0,0.00011879,2]
[327071471,1715778649408,-151.0,0.00011879,2]
[327071472,1715778649417,-500.0,0.00011879,2]
[327071473,1715778649427,-500.0,0.00011879,2]
[327071474,1715778649437,-184.87146462,0.00011879,2]
[327071475,1715778649449,-500.0,0.00011879,2]
[327071476,1715778649459,-500.0,0.00011879,2]
[327071477,1715778649468,-266.1,0.00011879,2]
[327071478,1715778649478,-500.0,0.00011879,2]
[327071479,1715778649487,-500.0,0.00011879,2]
[327071480,1715778649496,-353.62,0.00011879,2]
[327071481,1715778649505,-214.14,0.00011879,2]
[327071482,1715778649514,-500.0,0.00011879,2]
[327071483,1715778649526,-500.0,0.00011879,2]
[327071484,1715778649535,-500.0,0.00011879,2]
[327071485,1715778649544,-673.01,0.00011879,2]
[327071486,1715778649552,-673.01,0.00011879,2]
[327071487,1715778649561,-673.01,0.00011879,2]
[327071488,1715778649570,-500.0,0.00011879,2]
[327071489,1715778649579,-500.0,0.00011879,2]
[327071490,1715778649587,-430.46,0.00011879,2]
[327071491,1715778649597,-500.0,0.00011879,2]
[327071492,1715778649606,-500.0,0.00011879,2]
[327071493,1715778649616,-500.0,0.00011879,2]
[327071494,1715778649625,-500.0,0.00011879,2]
[327071495,1715778649633,-182.04188806,0.00011879,2]
[327071496,1715778649643,-500.0,0.00011879,2]
[327071497,1715778649651,-500.0,0.00011879,2]
[327071498,1715778649660,-500.0,0.00011879,2]
[327071499,1715778649668,-500.0,0.00011879,2]
[327071500,1715778649677,-500.0,0.00011879,2]
[327071501,1715778649686,-500.0,0.00011879,2]
[327071502,1715778649695,-500.0,0.00011879,2]
[327071503,1715778649703,-500.0,0.00011879,2]
[327071504,1715778649714,-500.0,0.00011879,2]
[327071505,1715778649723,-500.0,0.00011879,2]
[327071506,1715778649732,-500.0,0.00011879,2]
[327071507,1715778649742,-500.0,0.00011879,2]
[327071508,1715778649751,-190.09983695,0.00011879,2]
[327071509,1715778649760,-2315.79,0.00011879,2]
[327071510,1715778649769,-2315.79,0.00011879,2]
[327071511,1715778649778,-2315.79,0.00011879,2]
[327071512,1715778649788,-500.0,0.00011879,2]
[327071513,1715778649798,-500.0,0.00011879,2]
[327071514,1715778649807,-264.42,0.00011879,2]
[327071515,1715778649816,-500.0,0.00011879,2]
[327071516,1715778649825,-500.0,0.00011879,2]
[327071517,1715778649834,-500.0,0.00011879,2]
[327071518,1715778649846,-500.0,0.00011879,2]
[327071519,1715778649855,-500.0,0.00011879,2]
[327071520,1715778649864,-500.0,0.00011879,2]
[327071521,1715778649873,-500.0,0.00011879,2]
[327071522,1715778649882,-500.0,0.00011879,2]
[327071523,1715778649891,-564.79,0.00011879,2]
[327071524,1715778649900,-873.88,0.00011879,2]
[327071525,1715778649909,-873.88,0.00011879,2]
[327071526,1715778649918,-873.88,0.00011879,2]
[327071527,1715778649927,-500.0,0.00011879,2]
[327071528,1715778649936,-500.0,0.00011879,2]
[327071529,1715778649945,-490.15608391,0.00011879,2]
[327071530,1715778649954,-500.0,0.00011879,2]
[327071531,1715778649963,-500.0,0.00011879,2]
[327071532,1715778649972,-500.0,0.00011879,2]
[327071533,1715778649981,-500.0,0.00011879,2]
[327071534,1715778649991,-500.0,0.00011879,2]
[327071535,1715778650000,-500.0,0.00011879,2]
[327071536,1715778650008,-500.0,0.00011879,2]
[327071537,1715778650018,-500.0,0.00011879,2]
[327071538,1715778650027,-500.0,0.00011879,2]
[327071539,1715778650037,-500.0,0.00011879,2]
[327071540,1715778650049,-500.0,0.00011879,2]
[327071541,1715778650059,-569.3058,0.00011879,2]
[327071542,1715778650072,-437.77286345,0.00011879,2]
[327071543,1715778650081,-500.0,0.00011879,2]
[327071544,1715778650091,-500.0,0.00011879,2]
[327071545,1715778650101,-500.0,0.00011879,2]
[327071546,1715778650110,-606.18,0.00011879,2]
[327071547,1715778650119,-606.18,0.00011879,2]
[327071548,1715778650129,-606.18,0.00011879,2]
[327071549,1715778650140,-500.0,0.00011879,2]
[327071550,1715778650151,-359.13162303,0.00011879,2]
[327071551,1715778650160,-151.0,0.00011879,2]
[327071552,1715778650169,-620.72,0.00011879,2]
[327071553,1715778650179,-620.72,0.00011879,2]
[327071554,1715778650188,-620.72,0.00011879,2]
[327071555,1715778650197,-500.0,0.00011879,2]
[327071556,1715778650206,-500.0,0.00011879,2]
[327071557,1715778650354,-500.0,0.00011879,2]
[327071558,1715778650364,-199.577903,0.00011879,2]
[327071559,1715778650373,-502.66,0.00011879,2]
[327071560,1715778650382,-502.66,0.00011879,2]
[327071561,1715778650392,-502.66,0.00011879,2]
[327071562,1715778650402,-578.26,0.00011879,2]
[327071563,1715778650412,-500.0,0.00011879,2]
[327071564,1715778650421,-500.0,0.00011879,2]
[327071565,1715778650431,-500.0,0.00011879,2]
[327071566,1715778650440,-151.0,0.00011879,2]
[327071567,1715778650454,-921.5,0.00011879,2]
[327071568,1715778650463,-921.5,0.00011879,2]
[327071569,1715778650472,-921.5,0.00011879,2]
[327071570,1715778650482,-561.48,0.00011879,2]
[327071571,1715778650492,-561.48,0.00011879,2]
[327071572,1715778650501,-561.48,0.00011879,2]
[327071573,1715778650510,-500.0,0.00011879,2]
[327071574,1715778650521,-500.0,0.00011879,2]
[327071575,1715778650530,-500.0,0.00011879,2]
[327071576,1715778650540,-500.0,0.00011879,2]
[327071577,1715778650549,-500.0,0.00011879,2]
[327071578,1715778650558,-500.0,0.00011879,2]
[327071579,1715778650568,-500.0,0.00011879,2]
[327071580,1715778650577,-500.0,0.00011879,2]
[327071581,1715778650586,-500.0,0.00011879,2]
[327071582,1715778650596,-408.94009704,0.00011879,2]
[327071583,1715778650794,-91.05990296,0.00011879,2]
[327071584,1715778650805,-500.0,0.00011879,2]
[327071585,1715778650814,-500.0,0.00011879,2]
[327071586,1715778650824,-500.0,0.00011879,2]
[327071587,1715778650833,-500.0,0.00011879,2]
[327071588,1715778650843,-500.0,0.00011879,2]
[327071589,1715778650852,-500.0,0.00011879,2]
[327071590,1715778650862,-166.42,0.00011879,2]
[327071591,1715778650871,-500.0,0.00011879,2]
[327071592,1715778650881,-500.0,0.00011879,2]
[327071593,1715778650890,-500.0,0.00011879,2]
[327071594,1715778650899,-500.0,0.00011879,2]
[327071595,1715778650908,-500.0,0.00011879,2]
[327071596,1715778650918,-500.0,0.00011879,2]
[327071597,1715778650928,-1051.12079272,0.00011879,2]
[327071608,1715778779891,384.0,0.000235,120]
[327071616,1715779234721,158.32,8.406e-05,2]
[327071620,1715779273939,8774.00484497,8.406e-05,2]
[327071634,1715779396011,182.48,8.219e-05,2]
[327071637,1715779442116,888.0,8.178e-05,2]
[327071638,1715779456089,-158.05181906,8.594e-05,2]
[327071639,1715779456112,-1380.16157324,8.594e-05,2]
[327071640,1715779456134,-157.66029153,8.594e-05,2]
[327071641,1715779456155,-817.82411991,8.595e-05,2]
[327071642,1715779456177,-155.0,8.595e-05,2]
[327071643,1715779456197,-1331.30219626,8.595e-05,2]
[327071644,1715779456871,-4000.0,8.595e-05,2]
[327071645,1715779457727,-4000.0,8.595e-05,2]
[327071646,1715779458542,-4000.0,8.595e-05,2]
[327071647,1715779459907,-4000.0,8.595e-05,2]
[327071648,1715779460848,-4000.0,8.595e-05,2]
[327071649,1715779461747,-1491.03030037,8.595e-05,2]
[327071650,1715779472771,155.0,8.595e-05,2]
[327071651,1715779473620,2353.96969963,8.595e-05,2]
[327071652,1715779473643,4000.0,8.595e-05,2]
[327071653,1715779473666,4000.0,8.595e-05,2]
[327071654,1715779473687,4000.0,8.595e-05,2]
[327071655,1715779502101,-643.1326905,8.594e-05,2]
[327071656,1715779502122,-540.63510171,8.594e-05,2]
[327071657,1715779502147,-217.27337615,8.594e-05,2]
[327071658,1715779502168,-155.0,8.594e-05,2]
[327071659,1715779502189,-2443.95883164,8.594e-05,2]
[327071660,1715779502721,-4000.0,8.594e-05,2]
[327071661,1715779503727,-1921.70527832,8.594e-05,2]
[327071662,1715779503753,-2078.29472168,8.595e-05,2]
[327071663,1715779504613,-4000.0,8.595e-05,2]
[327071664,1715779505404,-4000.0,8.595e-05,2]
[327071665,1715779506530,-155.0,8.595e-05,2]
[327071666,1715779506552,-3845.0,8.595e-05,2]
[327071667,1715779507633,-4000.0,8.595e-05,2]
[327071668,1715779509026,-4000.0,8.595e-05,2]
[327071669,1715779510046,-4000.0,8.595e-05,2]
[327071670,1715779511090,-3015.01360057,8.595e-05,2]
[327071671,1715779511344,-984.98639943,8.595e-05,2]
[327071672,1715779543895,-299.88079029,8.595e-05,2]
[327071673,1715779543923,-300.0,8.595e-05,2]
[327071674,1715779543950,-3400.11920971,8.595e-05,2]
[327071675,1715779545217,-4000.0,8.595e-05,2]
[327071676,1715779553634,-4000.0,8.595e-05,2]
[327071677,1715779554302,-4000.0,8.595e-05,2]
[327071678,1715779560990,157.26,8.364e-05,2]
[327071680,1715779602474,554.43462345,8.364e-05,2]
[327071681,1715779602497,31.29795748,8.364e-05,2]
[327071682,1715779602518,4000.0,8.364e-05,2]
[327071683,1715779602540,2929.64384286,8.364e-05,2]
[327071685,1715779617212,361.03199627,8.364e-05,2]
[327071686,1715779618416,709.32416087,8.364e-05,2]
[327071687,1715779618439,4000.0,8.364e-05,2]
[327071688,1715779618462,4000.0,8.364e-05,2]
[327071689,1715779618484,4000.0,8.364e-05,2]
[327071690,1715779618506,4000.0,8.364e-05,2]
[327071691,1715779618527,4000.0,8.364e-05,2]
[327071692,1715779618549,4000.0,8.364e-05,2]
[327071693,1715779618571,4000.0,8.364e-05,2]
[327071694,1715779618592,4000.0,8.364e-05,2]
[327071695,1715779618615,4000.0,8.364e-05,2]
[327071696,1715779618638,4000.0,8.364e-05,2]
[327071697,1715779618659,4000.0,8.364e-05,2]
[327071698,1715779618682,4000.0,8.364e-05,2]
[327071699,1715779618704,2522.97737305,8.364e-05,2]
[327071706,1715779710439,24000.0,8.364e-05,2]
[327071707,1715779710716,155.0,8.364e-05,2]
[327071708,1715779716805,173.31130324,8.364e-05,2]
[327071716,1715779728683,286.12391748,8.364e-05,2]
[327071730,1715779775619,158.32,7.821e-05,2]
[327071747,1715779835240,-8997.35750037,8.594e-05,2]
[327071749,1715779835251,-207.1548932,8.595e-05,2]
[327071750,1715779835261,-2327.58708736,9.259e-05,2]
[327071751,1715779835271,-1849.00548506,9.26e-05,2]
[327071752,1715779835283,-1007.07451494,9.26e-05,2]
[327071753,1715779835293,-640.0,9.781e-05,2]
[327071754,1715779835303,-3799.82,9.781e-05,2]
[327071756,1715779835312,-643.1326905,9.846e-05,2]
[327071757,1715779835322,-235.24,9.848e-05,2]
[327071758,1715779835332,-690.0,9.877e-05,2]
[327071759,1715779835342,-200.0,9.879e-05,2]
[327071760,1715779835352,-250.0,9.969e-05,2]
[327071761,1715779835362,-1218.98,9.99e-05,2]
[327071762,1715779835372,-409.50018805,0.0001,2]
[327071763,1715779835382,-834.55,0.00010024,2]
[327071764,1715779835391,-250.0,0.00010133,2]
[327071765,1715779835401,-500.0,0.00010136,2]
[327071766,1715779835411,-1283.98392734,0.0001023,2]
[327071767,1715779835420,-164.66,0.00010341,2]
[327071768,1715779835437,-158.73,0.00010345,2]
[327071769,1715779835446,-164.47,0.00010393,2]
[327071770,1715779835456,-158.73,0.00010405,2]
[327071771,1715779835466,-165.03,0.00010411,2]
[327071772,1715779835476,-360.0,0.00010418,2]
[327071773,1715779835487,-158.73,0.00010465,2]
[327071774,1715779835497,-180.54,0.00010508,2]
[327071775,1715779835507,-158.73,0.00010525,2]
[327071776,1715779835518,-43292.27802188,0.00010559,2]
[327071777,1715779835528,-180.54,0.0001056,2]
[327071778,1715779835538,-158.73,0.00010585,2]
[327071779,1715779835548,-158.73,0.00010645,2]
[327071780,1715779835559,-158.73,0.00010704,2]
[327071781,1715779835570,-158.73,0.00010764,2]
[327071782,1715779835580,-170.03,0.00010781,2]
[327071783,1715779835592,-23900.0,0.00010814,2]
[327071784,1715779835603,-30241.728,0.00010814,2]
[327071785,1715779835613,-158.73,0.00010824,2]
[327071786,1715779835624,-158.73,0.00010884,2]
[327071788,1715779835635,-3000.0,0.00010959,2]
[327071790,1715779835646,-2551.15,0.00010959,2]
[327071792,1715779835655,-702.73,0.00010959,3]
[327071793,1715779835665,-805.68,0.00010959,2]
[327071795,1715779835675,-414.39199165,0.00011,2]
[327071797,1715779835689,-640.0,0.00011003,2]
[327071799,1715779835699,-157.26,0.00011436,2]
[327071802,1715779835710,-523.5502,0.0001158,2]
[327071805,1715779835720,-155.4413,0.0001158,2]
[327071807,1715779835730,-500.0,0.0001158,2]
[327071808,1715779835740,-164.66,0.00011634,2]
[327071810,1715779835752,-1064.92820131,0.00011641,2]
[327071812,1715779835762,-1563.85586632,0.00011659,2]
[327071814,1715779835772,-156.95,0.0001167,2]
[327071815,1715779835783,-674.663001,0.00011678,2]
[327071817,1715779835797,-154905.4622,0.0001168,2]
[327071819,1715779835807,-616.92825219,0.0001168,2]
[327071821,1715779835818,-347.954734,0.000117,2]
[327071823,1715779835828,-616.92825218,0.0001171,2]
[327071824,1715779835840,-360.0,0.0001172,2]
[327071825,1715779835851,-158.32,0.00011732,2]
[327071826,1715779835863,-616.92825218,0.00011739,2]
[327071827,1715779835874,-300.0,0.00011741,2]
[327071828,1715779835886,-152.31829643,0.00011757,2]
[327071829,1715779835896,-302.65904655,0.00011759,2]
[327071830,1715779835907,-616.92825218,0.00011769,2]
[327071831,1715779835917,-10000.0,0.00011771,2]
[327071832,1715779835930,-1000.0,0.00011771,2]
[327071833,1715779835940,-174.53743641,0.0001178,2]
[327071834,1715779835950,-500.0,0.0001178,2]
[327071835,1715779835961,-583.88,0.0001178,2]
[327071836,1715779835971,-500.0,0.0001178,2]
[327071837,1715779835982,-333.57526748,0.0001178,2]
[327071838,1715779835992,-931.99,0.0001178,2]
[327071839,1715779836002,-500.0,0.0001178,2]
[327071840,1715779836013,-500.0,0.0001178,2]
[327071841,1715779836024,-432.72,0.0001178,2]
[327071842,1715779836034,-556.52180558,0.0001178,2]
[327071843,1715779836044,-172.03572244,0.0001178,2]
[327071844,1715779836053,-412.12988969,0.0001178,2]
[327071845,1715779836064,-1043.83,0.0001178,2]
[327071846,1715779836075,-505.56952533,0.0001178,2]
[327071847,1715779836085,-526.99,0.0001178,2]
[327071848,1715779836095,-500.0,0.0001178,2]
[327071849,1715779836104,-500.0,0.0001178,2]
[327071850,1715779836114,-1597.57932077,0.0001178,2]
[327071851,1715779836124,-500.0,0.0001178,2]
[327071852,1715779836134,-198.39314282,0.0001178,2]
[327071853,1715779836144,-715.48,0.0001178,2]